Cogmind - Beta 17 @@@ ROGUE MODE // 2026.07.15 @ 08:26:44 Player: ChCbias Result: Destroyed by S-43 Plague with Heavy Machine Gun Performance ------------- Evolutions (7) 3500 Regions Visited (6) 1200 Robots Destroyed (72) 360 Value Destroyed (3111) 3111 Prototype IDs (10) 200 Alien Tech Used (0) 0 Bonus (2279) 2279 TOTAL SCORE: 10650 Bonus ------- High Alert Combat Kills 698 Follower Combat Kills 781 Registered with UFD 300 Met Optimus in HQ 500 Cogmind --------- Core Integrity 0/1300 Matter 75/300 Energy 99/100 System Corruption 16% Temperature Cool (0) Movement Core (50) Location -3/Research Parts ------- > --- POWER (2) -------- (None) > --- PROPULSION (5) --- (None) > --- UTILITY (10) ----- (None) > --- WEAPON (4) ------- (None) > --- INVENTORY (5) ---- High-capacity Storage Unit Advanced Sensor Array Advanced Terrain Scanner Long-range Terrain Scanner Improved Medium Armor Plating Peak State ------------ > --- POWER ------------ Light Antimatter Reactor > --- PROPULSION ------- Improved Medium Treads Heavy Siege Treads Multireflex Exoskeleton > --- UTILITY ---------- Advanced Heat Sink Advanced Heat Sink Advanced Heat Sink Advanced Heat Sink High-capacity Storage Unit Advanced Sensor Array Advanced Signal Interpreter Long-range Terrain Scanner Core Analyzer Advanced Focal Shield > --- WEAPON ----------- Dispersion Rifle Dispersion Rifle Railgun > --- INVENTORY -------- Light Nuclear Core Micro Fission Core Advanced Transmission Jammer Improved Weapon Shielding Improved Weapon Shielding Graphene Brace Advanced Thermal Shield Improved Force Field System Shield Advanced Trap Extractor Drone Bay Field Laser Dispersion Rifle Dispersion Rifle Dispersion Rifle Disruptor Cannon Advanced Plasma Cannon Hardcell Cannon Long-range Missile Launcher Falx [Rating: 119] Favorites ----------- Power Improved Ion Engine Engine Improved Ion Engine Power Core Light Nuclear Core Reactor Antimatter Reactor Propulsion Armored Treads Treads Armored Treads Leg Flexi-carbon Leg Wheel Wheel Utility Advanced Heat Sink Device Advanced Heat Sink Storage Large Storage Unit Processor Core Analyzer Hackware System Shield Protection Improved Medium Armor Plating Weapon Gauss Rifle Energy Gun Field Laser Ballistic Gun Gauss Rifle Ballistic Cannon Hardcell Cannon Launcher Long-range Missile Launcher Special Weapon Voltaic Drivehammer Build | -11 -10 -10 -7 -5 -4 -3 ------- Run | Yrd Mat Sub Scr Fac Fac Res Slots Evolved 14 | . . . . 10 2 2 Power 1 | . . . . . . 1 Propulsion 3 | . . . . 3 . . Utility 8 | . . . . 6 2 . Weapon 2 | . . . . 1 . 1 Parts Attached 83 | 6 2 . 10 13 45 7 Power 9 | 1 1 . 2 . 4 1 Engine 4 | 1 1 . 1 . 1 . Core 3 | . . . 1 . 2 . Reactor 2 | . . . . . 1 1 Propulsion 23 | 2 . . 3 3 11 4 Treads 13 | 2 . . 3 3 3 2 Leg 8 | . . . . . 8 . Wheel 2 | . . . . . . 2 Hover . | . . . . . . . Flight . | . . . . . . . Utility 31 | 1 1 . 2 6 19 2 Device 18 | . 1 . . 4 12 1 Storage 3 | 1 . . 1 . 1 . Processor 2 | . . . . 1 1 . Hackware 2 | . . . . . 1 1 Protection 6 | . . . 1 1 4 . Artifact . | . . . . . . . Weapon 20 | 2 . . 3 4 11 . Energy Gun 8 | . . . . . 8 . Energy Cannon . | . . . . . . . Ballistic Gun 8 | 2 . . 3 2 1 . Ballistic Cannon 1 | . . . . . 1 . Launcher 1 | . . . . 1 . . Special Weapon 2 | . . . . 1 1 . Impact Weapon . | . . . . . . . Slashing Weapon . | . . . . . . . Piercing Weapon . | . . . . . . . Special Melee Weapon . | . . . . . . . Unidentified Prototypes 2 | . . . 1 . 1 . Parts Lost 34 | . . . . 8 19 7 Power 3 | . . . . . 3 . Propulsion 12 | . . . . 3 6 3 Utility 14 | . . . . 3 8 3 Weapon 5 | . . . . 2 2 1 Highest Loss Streak 8 | . . . . 8 7 6 To Critical Strikes 1 | . . . . . 1 . Average Backups 10 | 2 7 8 11 10 11 4 Power 1 | . 1 2 1 2 2 . Propulsion 1 | 2 2 2 2 . . . Utility 3 | . . 1 4 3 3 4 Weapon 3 | . 2 3 3 4 4 . Tool/Special . | . . . . . . . Unused Backups 32 | . 3 . 11 . 16 2 Power 5 | . 1 . 3 . 1 . Propulsion 4 | . 2 . 2 . . . Utility 13 | . . . 3 . 8 2 Weapon 10 | . . . 3 . 7 . Tool/Special . | . . . . . . . Average Slot Usage (%) 89 | . 99 100 100 92 78 36 Engine 8 | . 14 14 13 4 2 . Treads 21 | . 28 28 28 28 6 3 Leg 2 | . . . . . 9 . Device 16 | . 13 14 13 16 31 3 Storage 9 | . 14 14 14 5 3 . Processor 2 | . . . . 4 5 3 Protection 2 | . . . . 10 2 3 Energy Gun 2 | . . . . . 10 . Ballistic Gun 18 | . 28 28 28 16 2 3 Peak Build Rating 119 | 6 9 9 28 72 119 48 Average Rating 40 | 4 8 9 17 69 88 35 On Entrance 14 | . 6 9 9 28 36 13 Avg Prop Armor Cover (%) 11 | . . . 7 . 9 15 Naked Turns 13 | . . . . . . 13 Heaviest Build 91 | 13 16 16 44 71 91 25 Greatest Support 103 | 40 40 40 40 99 103 35 Greatest Overweight (x) 2 | . . . 1 2 2 2 Average Overweight (x) . | . . . . . . . Largest Inventory Capacity 20 | 8 8 8 15 15 20 5 Average Capacity 12 | 6 8 8 14 15 12 5 Most Carried 20 | 6 8 8 15 13 20 5 Average Carried 10 | 3 7 8 12 10 11 4 Final Capacity 15 | 8 8 8 15 15 5 5 Final Carried 15 | 6 8 8 15 13 5 5 Scrap Suit Usage (%) 12 | . . . . 100 3 . Parts Cannibalized 8 | . . . . 8 . . Class Distribution -------------------- 61% | Mutant 11% | Scrapper 10% | Scavenger-Tank 7% | Hacker-Mutant 6% | Scavenger-Gunner 3% | Scavenger-Skirmisher Dominant Class ---------------- Mutant | -10/Materials Mutant | -10/Subcaves Mutant | -7/Scraptown Scrapper | -5/Factory Scavenger-Tank | -4/Factory Hacker-Mutant | -3/Research Resources | -11 -10 -10 -7 -5 -4 -3 ----------- Run | Yrd Mat Sub Scr Fac Fac Res Matter Collected 2253 | 185 44 33 200 961 745 85 Remotely 1033 | . . . . 961 72 . Salvage Created 3165 | . 44 33 . 1396 1607 85 Parts 143 | . 3 2 . 63 67 8 Haulers Intercepted 1 | . . . . 1 . . Recyclers Shooed 4 | . . . . 2 1 1 Parts Field Recycled . | . . . . . . . Retrieved Matter . | . . . . . . . Parts Self-Destructed . | . . . . . . . Prevented . | . . . . . . . Parts Restored . | . . . . . . . Kills | -11 -10 -10 -7 -5 -4 -3 ------- Run | Yrd Mat Sub Scr Fac Fac Res Combat Hostiles Destroyed 58 | . 3 1 . 23 30 1 Guns 49 | . 3 1 . 21 23 1 AOE 8 | . . . . 2 6 . Classes Destroyed 13 | . 1 1 . 8 3 . Worker 6 | . . . . 2 3 1 Builder 5 | . . . . 3 2 . Hauler 1 | . . . . 1 . . Recycler 2 | . . . . 1 1 . Swarmer 19 | . 3 . . 8 8 . Saboteur 1 | . . . . . 1 . Grunt 21 | . . . . 9 12 . Brawler 1 | . . . . . 1 . Sentry 4 | . . . . 1 3 . Specialist 2 | . . . . . 2 . Hunter 3 | . . . . 3 . . Programmer 6 | . . . . 2 3 1 Subdweller 1 | . . 1 . . . . Best Kill Streak 13 | . 3 1 . 13 6 1 Combat Bots Only 9 | . 3 1 . 9 5 1 Max Kills in Single Turn 4 | . 1 1 . 4 3 1 Gunslinging 2 | . . . . 2 1 . Exploded 2 | . . . . 1 2 . Melee . | . . . . . . . Uniques/NPCs Destroyed . | . . . . . . . Combat | -11 -10 -10 -7 -5 -4 -3 -------- Run | Yrd Mat Sub Scr Fac Fac Res Hostile Shots Fired 623 | . 12 4 9 145 321 132 Missed 202 | . 5 2 3 49 102 41 Hits 421 | . 7 2 6 96 219 91 Melee 2 | . . . . 1 1 . Projectile 419 | . 7 2 6 95 218 91 AOE 2 | . . . . . 2 . Critical Strikes 22 | . . . . 2 13 7 Actively Blocked 2 | . . . . . . 2 Part Disruptions 2 | . . . . . 2 . Damage Taken 8779 | . 55 221 133 1781 4437 2152 Core 2175 | . . 53 19 108 686 1309 Absorbed by Shields . | . . . . . . . Redirected to Shielding 232 | . . . . . 128 104 Ignored by Resistances 111 | . . . . 111 . . Regen/Repaired (Parts) 73 | . . . . 73 . . Core Remaining (%) 75 | 100 . . 71 89 40 . Volleys Fired 169 | . 4 3 7 57 80 18 Largest 3 | . 2 2 2 3 3 1 Hottest 264 | . 40 40 53 111 264 35 Shots Fired 402 | . 8 6 11 168 192 17 Gun 380 | . 8 6 11 164 174 17 Cannon 9 | . . . . . 9 . Launcher 11 | . . . . 2 9 . Special 2 | . . . . 2 . . Kinetic 261 | . 8 6 11 164 55 17 Thermal 128 | . . . . . 128 . Explosive 11 | . . . . 2 9 . Electromagnetic . | . . . . . . . Robot Hit Streak 36 | . 3 5 1 10 36 10 Robot Miss Streak 5 | . 3 1 2 3 5 2 Penetration Max 1 | . . . . 1 1 . Secondary Targets 13 | . 1 . . 6 6 . Max Gunslinging Chain 2 | . 1 . . 2 2 . Shots Hit Robots 262 | . 4 5 2 107 132 12 Core Hits 163 | . 3 3 . 62 90 5 Critical Kills 2 | . . . . 1 1 . Critical Parts Destroyed 13 | . . . . 10 3 . Critical Strikes 19 | . . . . 12 7 . Burn 3 | . . . . . 3 . Destroy 16 | . . . . 12 4 . Melee Attacks . | . . . . . . . Impact . | . . . . . . . Slashing . | . . . . . . . Piercing . | . . . . . . . Sneak Attacks . | . . . . . . . Combat Hostiles . | . . . . . . . Follow-up Attacks . | . . . . . . . Damage Inflicted 8746 | . 47 53 41 3481 4732 392 Guns 6688 | . 47 53 41 3032 3152 363 Cannons . | . . . . . . . Explosions 2002 | . . . . 442 1560 . Melee . | . . . . . . . Ramming 56 | . . . . 7 20 29 Kinetic 4394 | . 47 53 41 3032 858 363 Thermal 2294 | . . . . . 2294 . Explosive 1976 | . . . . 416 1560 . Electromagnetic 26 | . . . . 26 . . Impact . | . . . . . . . Slashing . | . . . . . . . Piercing . | . . . . . . . Highest Corruption 16 | . . . . 3 14 16 Average Corruption 3 | . . . . 1 3 10 Corruption Purged 2 | . . . . . 2 . Corruption Blocked . | . . . . . . . Effects 33 | . . . . 1 22 10 Message Errors 6 | . . . . . 4 2 Matter Fused 6 | . . . . . 4 2 Heat Flow Errors 5 | . . . . . 5 . Energy Discharges 3 | . . . . . 1 2 Parts Fused 1 | . . . . . 1 . Data Loss (minor) 4 | . . . . . 3 1 Data Loss (major) 2 | . . . . . 2 . Misfires 1 | . . . . 1 . . Alerts 2 | . . . . . 2 . Misdirections 2 | . . . . . . 2 Weapon Failures 1 | . . . . . . 1 Overload Shots . | . . . . . . . Overflow Damage . | . . . . . . . Projectiles . | . . . . . . . Explosions . | . . . . . . . Melee . | . . . . . . . Knockbacks 1 | . . . . . 1 . Impact 1 | . . . . . 1 . Kinetic . | . . . . . . . Secondary . | . . . . . . . Self-Inflicted Damage 6 | . . . . . . 6 Shots . | . . . . . . . Rammed 20 | . . . . 1 2 17 Targets Rammed 24 | . . . . 2 5 17 Kicked 2 | . . . . . 2 . Crushed 2 | . . . . 1 1 . Highest Temperature 241 | . . . 52 241 141 . Average Temperature 67 | . . . 25 73 40 . Received Heat Transfer 861 | . . 12 72 87 690 . Siege Activations . | . . . . . . . Martial Activations . | . . . . . . . Shielding Activations . | . . . . . . . Robots Disrupted . | . . . . . . . Combat Hostiles . | . . . . . . . Robots Corrupted . | . . . . . . . Combat Hostiles . | . . . . . . . Parts Fried . | . . . . . . . Impact Corruptions . | . . . . . . . Robots Melted 1 | . . . . . 1 . Combat Hostiles 1 | . . . . . 1 . Parts Melted 13 | . . . . 1 12 . Heat Transferred 4123 | . . . . . 4123 . Parts Sabotaged 1 | . . . . 1 . . Parts Stolen . | . . . . . . . Parts Stripped . | . . . . . . . Power Chain Reactions . | . . . . . . . Alert | -11 -10 -10 -7 -5 -4 -3 ------- Run | Yrd Mat Sub Scr Fac Fac Res Maximum Alert Level 3 | . . . . 3 3 2 Low Security (%) 23 | 100 100 . . 37 . 5 Level 1 17 | . . . . 32 . 58 Level 2 49 | . . . . 18 83 36 Level 3 10 | . . . . 11 16 . Level 4 . | . . . . . . . Level 5 . | . . . . . . . High Security . | . . . . . . . Max Security . | . . . . . . . Peak Influence 1098 | . 60 . . 1098 952 491 Initial 491 | . . . . . 488 491 Average 394 | . 10 . . 311 562 349 Influence Increases 2871 | . 79 . . 1420 1227 145 Destroy 0b10 Robot/C 1500 | . 60 . . 820 600 20 Destroy 0b10 Robot/NC 100 | . . . . 65 30 5 Destroy Leader 274 | . 10 . . 144 120 . Allied During Kill 108 | . . . . 108 . . Successful Hack 34 | . 9 . . . 25 . Disable Machine 270 | . . . . 150 105 15 Destroy Structure 270 | . . . . 118 152 . Lose Combat Pursuer 315 | . . . . 15 195 105 Influence Decreases 2607 | . 79 . . 422 1289 817 Entered New Map 955 | . . . . . 510 445 Time Decay 1292 | . 79 . . 322 589 302 Lost Part 340 | . . . . 80 190 70 Lost Ally 20 | . . . . 20 . . Squads Dispatched 22 | . . . . 7 13 2 Investigation 5 | . . . . 1 4 . Extermination 7 | . . . . 2 4 1 Reinforcement 6 | . . . . 3 2 1 Assault 4 | . . . . 1 3 . Garrison . | . . . . . . . Intercept . | . . . . . . . Searches Triggered . | . . . . . . . Construction Impeded 3 | . . . . 1 1 1 Haulers Reinforced 2 | . . . . 2 . . Active Scanning Responses . | . . . . . . . Cargo Convoy Interrupts 1 | . . . . 1 . . Stealth | -11 -10 -10 -7 -5 -4 -3 --------- Run | Yrd Mat Sub Scr Fac Fac Res Distress Signals 4 | . . . . 3 . 1 Communications Jammed . | . . . . . . . Distress Signals . | . . . . . . . Times Spotted 138 | . 3 1 5 63 50 16 Peak Tracking Total 14 | . 3 1 2 11 10 14 Tactical Retreats 5 | . . . . 1 3 1 Traps | -11 -10 -10 -7 -5 -4 -3 ------- Run | Yrd Mat Sub Scr Fac Fac Res Traps Triggered 8 | . . 4 . 1 1 2 Indirectly . | . . . . . . . Trap Hack Attempts . | . . . . . . . Triggered . | . . . . . . . Disarmed . | . . . . . . . Reprogrammed . | . . . . . . . Reused . | . . . . . . . Traps Extracted . | . . . . . . . Installed . | . . . . . . . Triggered . | . . . . . . . Machines | -11 -10 -10 -7 -5 -4 -3 ---------- Run | Yrd Mat Sub Scr Fac Fac Res Machines Disabled 20 | . . . 2 10 7 1 Max in Single Turn 3 | . . . 1 3 2 1 Garrison Access 1 | . . . . . 1 . Machines Repaired . | . . . . . . . Machines Dismantled . | . . . . . . . Machines Sabotaged . | . . . . . . . Overloaded Fab Kills . | . . . . . . . Hacking | -11 -10 -10 -7 -5 -4 -3 --------- Run | Yrd Mat Sub Scr Fac Fac Res Machines Accessed 24 | . 3 . 6 3 11 1 Terminals 9 | . 3 . . 1 4 1 Fabricators 2 | . . . . 1 1 . Repair Stations . | . . . . . . . Recycling Units 5 | . . . . 1 4 . Scanalyzers 1 | . . . . . 1 . Garrison Access 1 | . . . . . 1 . Total Hacks 74 | . 6 . 36 7 22 3 Successful 54 | . 4 . 36 2 11 1 Failed 19 | . 1 . . 5 11 2 Catastrophic 9 | . . . . 3 5 1 Database Lockouts 1 | . 1 . . . . . Manual 17 | . 4 . . 4 7 2 Terminals 19 | . 6 . . 1 9 3 Fabricators 4 | . . . . 3 1 . Repair Stations . | . . . . . . . Recycling Units 12 | . . . . 3 9 . Scanalyzers 1 | . . . . . 1 . Garrison Access 2 | . . . . . 2 . Terminal Hacks 44 | . 3 . 36 . 4 1 Record 32 | . . . 29 . 3 . Robot Analysis 7 | . 1 . 6 . . . Terminal Index 1 | . 1 . . . . . Alert Level 1 | . . . . . . 1 Surveillance Status 1 | . . . . . 1 . Registered Components 1 | . 1 . . . . . Proto ID Catalog 1 | . . . 1 . . . Fabricator Hacks 1 | . . . . 1 . . Network Status 1 | . . . . 1 . . Repair Station Hacks . | . . . . . . . Recycling Unit Hacks 2 | . . . . . 2 . Report Inventory 2 | . . . . . 2 . Scanalyzer 1 | . . . . . 1 . Retrieve Study 1 | . . . . . 1 . Garrison Access Hacks 1 | . . . . . 1 . Seal Access 1 | . . . . . 1 . Unauthorized Hacks 5 | . 1 . . 1 3 . Terminals 1 | . 1 . . . . . Botnet 1 | . 1 . . . . . Fabricators 1 | . . . . 1 . . Liberate 1 | . . . . 1 . . Repair Stations . | . . . . . . . Recycling Units 3 | . . . . . 3 . Fedlink 3 | . . . . . 3 . Scanalyzers . | . . . . . . . Garrison Access . | . . . . . . . Data Cores Recovered . | . . . . . . . Used . | . . . . . . . Hacking Detections 14 | . 3 . . 3 7 1 Full Trace Events 2 | . . . . 1 1 . Feedback Events . | . . . . . . . Feedback Blocked . | . . . . . . . Robot Schematics Acquired . | . . . . . . . Robots Built . | . . . . . . . Authchips . | . . . . . . . Time . | . . . . . . . Total Robot Build Rating . | . . . . . . . Part Schematics Acquired . | . . . . . . . Parts Built . | . . . . . . . Authchips . | . . . . . . . Time . | . . . . . . . Total Part Build Rating . | . . . . . . . Part Studies Acquired 1 | . . . . . 1 . Parts Repaired . | . . . . . . . Time . | . . . . . . . Parts Recycled . | . . . . . . . Recycled Matter . | . . . . . . . Retrieved Matter . | . . . . . . . Retrieved Components . | . . . . . . . Parts Scanalyzed . | . . . . . . . Part Schematics Acquired . | . . . . . . . Parts Damaged . | . . . . . . . Bothacking | -11 -10 -10 -7 -5 -4 -3 ------------ Run | Yrd Mat Sub Scr Fac Fac Res Used RIF Installer . | . . . . . . . Robots Hacked 2 | . . . . 2 . . Non-combat 2 | . . . . 2 . . Combat . | . . . . . . . Robot Hacks Applied 2 | . . . . 2 . . find_recycling 2 | . . . . 2 . . Relay Couplers Released . | . . . . . . . Fabnet Peak Effective % . | . . . . . . . Robots Rewired . | . . . . . . . Allies Hacked . | . . . . . . . Hacks Repelled . | . . . . . . . Allies | -11 -10 -10 -7 -5 -4 -3 -------- Run | Yrd Mat Sub Scr Fac Fac Res Total Allies 1 | . . . 1 . . . Largest Group 1 | . . . 1 1 . . Highest-Rated Group 85 | . . . 85 85 . . Highest-Rated Ally 85 | . . . 85 85 . . Initial UFD Resources 60 | . . . . 38 41 60 Total Orders 2 | . . . . . 2 . EXPLORE 2 | . . . . . 2 . Ally Attacks 71 | . . . 3 68 . . Total Damage 2212 | . . . 64 2148 . . Kills 26 | . . . 2 24 . . Allies Corrupted . | . . . . . . . Allies Melted 3 | . . . 3 . . . Intel | -11 -10 -10 -7 -5 -4 -3 ------- Run | Yrd Mat Sub Scr Fac Fac Res Active Infowar (turns) 6958 | . 426 222 3748 927 1114 521 Sensors 774 | . . . . . 253 521 Terrain 1113 | . . . . . 1113 . Seismic 5323 | . 426 222 3748 927 . . Robot Analysis Total 7 | . 1 . 6 . . . Derelict Logs Recovered 1 | . . 1 . . . . Drone Launches 4 | . . . . . 4 . Drone Recoveries 4 | . . . . . 4 . Exploration | -11 -10 -10 -7 -5 -4 -3 ------------- Run | Yrd Mat Sub Scr Fac Fac Res Turns Passed 8201 | 85 438 222 4006 943 1841 666 Spaces Moved 4600 | 48 254 131 2158 479 914 616 Core 329 | 5 . . . . 146 178 Treads 3722 | 43 254 131 2158 479 585 72 Legs 183 | . . . . . 183 . Wheels 366 | . . . . . . 366 Hover . | . . . . . . . Flight . | . . . . . . . Fastest Speed 50 | 50 160 160 160 146 50 50 Average Speed 151 | 148 160 160 170 146 147 89 Slowest Speed 270 | 160 160 160 250 205 270 150 Overloaded Moves . | . . . . . . . Propulsion Burnouts . | . . . . . . . Robots Hopped . | . . . . . . . Potential Cave-ins . | . . . . . . . Cave-ins Triggered . | . . . . . . . Exploration Rate (%) 26 | 3 25 14 93 12 26 12 Regions Visited 6 Branch Regions 2 Pre-discovered Areas 2 | . . 1 . . 1 . Known Exits Taken 2 | . . . 1 . 1 . Unknown Exits Taken 4 | 1 1 1 . 1 . . Scrap Searched 6 | . . . 6 . . . Spaces Dug 9 | . . . . . 9 . Terrain Destroyed 164 | . . . . 62 100 2 Melee . | . . . . . . . Projectile 69 | . . . . 42 25 2 AOE 95 | . . . . 20 75 . Terrain Rammed . | . . . . . . . Walls Destroyed . | . . . . . . . Machines Disabled . | . . . . . . . Actions | -11 -10 -10 -7 -5 -4 -3 --------- Run | Yrd Mat Sub Scr Fac Fac Res Total 5524 | 59 280 134 2485 617 1246 703 Wait 480 | . 12 1 269 53 121 24 Move 4594 | 47 253 130 2157 478 913 616 Hop . | . . . . . . . Pick Up 65 | 6 5 . 20 4 28 2 Fast Attach 45 | 6 1 . 1 3 27 7 Attach 15 | . . . . 7 5 3 Detach 9 | . . . . 2 6 1 Swap 53 | . 1 . 10 11 31 . Drop 55 | . 4 . 21 . 30 . Fire 169 | . 4 3 7 57 80 18 Melee . | . . . . . . . Ram 4 | . . . . . . 4 Kick 2 | . . . . . 2 . Crush 19 | . . . . 2 3 14 Escape Stasis . | . . . . . . . Rewire 14 | . . . . . . 14 Trap . | . . . . . . . Miscellaneous . | . . . . . . . Route ------- -11/Scrapyard -10/Materials (discovered 2 exits: [*Min] / [*Sub]) -10/Subcaves -7/Scraptown (discovered 2 exits: *Fac x2) -5/Factory -4/Factory -3/Research History --------- Turn | Location | Event 33 | -11/Scrapyard | Discovered new exit (range 16) 86 | -11/Scrapyard | Entered Materials 309 | -10/Materials | Build established: Mutant 313 | -10/Materials | Discovered new exit (range 7) 349 | -10/Materials | Discovered new exit (range 12) 434 | -10/Materials | Central database locked down 524 | -10/Materials | Entered Subcaves 525 | -10/Subcaves | Approached by a straggling Scientist 558 | -10/Subcaves | Learned location of Storage (-7) 636 | -10/Subcaves | A swath of the cavern ceiling suddenly collapsed 746 | -10/Subcaves | Entered Scraptown 1359 | -7/Scraptown | Discovered new exit (range 5) 1598 | -7/Scraptown | Visited The Evicted 1635 | -7/Scraptown | Visited TADAMA 1726 | -7/Scraptown | Visited Red Mages 2463 | -7/Scraptown | Visited IN-MT5's Study 2598 | -7/Scraptown | Visited Awakened 2691 | -7/Scraptown | Visited Assassins FH 2751 | -7/Scraptown | Visited SPCMW 2854 | -7/Scraptown | Visited UFD Registry 2854 | -7/Scraptown | Registered with UFD as "Hardbucket" 3029 | -7/Scraptown | Visited Scrapoid Pod Storage 3062 | -7/Scraptown | Visited Curators Association 3130 | -7/Scraptown | Visited Science Guys 3386 | -7/Scraptown | Visited Botcube Research 3427 | -7/Scraptown | Visited Analyses Database 3466 | -7/Scraptown | Visited Derelict Rescue Squad 3478 | -7/Scraptown | Found DRS Beacon 3518 | -7/Scraptown | Visited DA-N13 Charitable Foundation 3542 | -7/Scraptown | Found DCF Scrap (28 items) 3618 | -7/Scraptown | Visited Modified Component R&D 3729 | -7/Scraptown | Found Scrap Suit 3974 | -7/Scraptown | Visited Junk Repository 4119 | -7/Scraptown | Met Optimus 4119 | -7/Scraptown | Accepted into 0bPrime 4480 | -7/Scraptown | Civil war broke out across Scraptown 4491 | -7/Scraptown | Found Voltaic Drivehammer 4543 | -7/Scraptown | Lost 3 allies 4544 | -7/Scraptown | Found Lrg. Botcube 4559 | -7/Scraptown | Lrg. Botcube activated 4587 | -7/Scraptown | Lrg. Botcube completed mutation into legged form, armed with 2 guns, 1 melee weapon 4614 | -7/Scraptown | Identified exit to Factory 4631 | -7/Scraptown | Lost 5 allies 4752 | -7/Scraptown | Entered Factory 4752 | -5/Factory | Accompanied by 1 ally 4752 | -5/Factory | Evolved 10 slots: Propulsion x3, Utility x6, Weapon x1 5062 | -5/Factory | Build established: Scrapper 5222 | -5/Factory | Spotted B-75 Beast 5234 | -5/Factory | Allies destroyed B-75 Beast 5613 | -5/Factory | Destroyed 9 combat bots 5648 | -5/Factory | Discovered new exit (range 16) 5652 | -5/Factory | First assault squad dispatched 5679 | -5/Factory | Cargo convoy interrupted 5695 | -5/Factory | Entered another Factory area 5695 | -4/Factory | Evolved 2 slots: Utility x2 5725 | -4/Factory | Lost 8 parts (3n3u2w) 5842 | -4/Factory | Loaded intel: 8 recycling unit locations 5893 | -4/Factory | Learned location of Protoforge (-2) 5945 | -4/Factory | First assault squad dispatched 5993 | -4/Factory | Lost 4 parts (1p1n1u1w) 6296 | -4/Factory | Build established: Scavenger-Gunner 6628 | -4/Factory | Build established: Scavenger-Tank 7444 | -4/Factory | System corruption reached 10% 7486 | -4/Factory | Lost 7 parts (1p2n3u1w) 7517 | -4/Factory | Core integrity fell below 50% 7528 | -4/Factory | Discovered new exit (range 15) 7535 | -4/Factory | Identified exit to Research 7536 | -4/Factory | Entered Research 7536 | -3/Research | Evolved 2 slots: Power x1, Weapon x1 7554 | -3/Research | Lost 3 parts (1n2u) 7830 | -3/Research | Build established: Hacker-Mutant 8104 | -3/Research | System corruption reached 10% 8146 | -3/Research | Lost 6 parts (2n3u1w) 8160 | -3/Research | Core integrity fell below 50% 8185 | -3/Research | Core integrity fell below 20% 8202 | -3/Research | Destroyed by S-43 Plague with Heavy Machine Gun Last Messages --------------- 08115_ Railgun destroyed. 08122_ System corrupted: Energy discharge (-21). 08125_ Prototyping Station disabled. 08126_ Acquired Biometal Medium Treads. 08132_ Slammed into P-80 Master. 08142_ System corrupted: Matter fused (-10). 08149_ Slammed into A-15 Conveyor. 08158_ System corrupted: Component data lost. 08166_ W-44 Eye sends out distress signal. 08170_ Biometal Medium Treads destroyed. 08173_ GVYLWLMT%#C=LL&SWYZZSJJ&XV4DBRI 08176_ Slammed into S-43 Plague. 08189_ Triggered Blade Trap. 08189_ Massive razor-sharp blades shoot up from within the floor. 08189_ System Shield severed. 08189_ Adv. Signal Interpreter severed. 08191_ JWJH# Z#LYGBVWNZV1NNRXESF4 NBBTU 08194_ T-07 Excavator destroyed. 08194_ S-43 Plague destroyed. Map ----- +----------------------------------------------------+ | ?????????????????????????????????????????????????? | | ?????????????????????????????????????????????????? | | ?????????????????????????????????????????????????? | | ?????????????????????????????????????????????????? | | ?????????????????????????????????????????????????? | | ?????????????????????????????????????????????????? | | ?????????????????????????????????????????????????? | | ?????????????????????????????????????????????????? | | ?????????????????????????????????????????????????? | | ?????????????????????????????????????????????????? | | ?????????????????????????????????????????????????? | | ?????????????????????????????????????????????????? | | ?????????????????????????????????????????????????? | | ?????????????????????????????????????????????????? | | ??????????????????????????????????? ????????????? | | ?????????????????????????????????? ????????????? | | ????????????????????????????????? #????????????? | | ???????????????????????????????? #????????????? | | ????????????????????????######## #????????????? | | ????????????????????????# ?????????????? | | ????????????????????????# ???????????????? | | ????????????????????????# ????????????????? | | ????????????????????????+ ??????????????????? | | ????????????????????????# #???????????????????? | | ????????????????????????# #???????????????????? | | ????????????????????????#@ k #???????????????????? | | ????????????????######### #???????????????????? | | ?????????????? # #???????????????????? | | ?????????????? # #???????????????????? | | ??????????????? # #???????????????????? | | ??????????????? # #???????????????????? | | ???????????????? # #???????????????????? | | ?########??????? # #???????????????????? | | ?# #???????? # #???????????????????? | | ?# #???????? # #???????????????????? | | ?# #????????? ?# #???????????????????? | | ?# #????????? ?# #???????????????????? | | ?# #?????????? ??#ss #???????????????????? | | ?# #?????????? ??# ss #???????????????????? | | ?# #?##########+#### p #######?????????????? | | ?# #?# #????????????? | | ?# #?# = ?????????? | | ?# #?# =*%! ! ?????????? | | ?# #?# =[%* ?????????? | | ?# #?# ###/############# ??????????? | | ?? ???# # ??????????? ??????????? | | ####+###### # ?????????? ??????????? | | # """" ????????? ???????????? | | # """" #????????? ???????????? | | # """"" #???????????????????????? | +----------------------------------------------------+ Best States ------------- Heat Dissipation 169 Energy Generation 21 Energy Capacity 325 Matter Stores 300 Matter Capacity 300 Sight Range 16 Robot Scan Range 16 Terrain Scan Range 24 Terrain Scan Density 10 Armor Coverage 375 Resistance: KI 20 Power Shielding 66 Utility Shielding 66 Weapon Shielding 66 Evasion (%) 70 Core Analysis 6 Recoil Reduction 5 Energy Filtering 30 Offensive Hacking 10 Defensive Hacking 10 Trap Extractor Capacity 8 Item Schematics ----------------- None Robot Schematics ------------------ None Fabricated ------------ Nothing Repaired ---------- Nothing Studied --------- Field Laser | -4/Factory | Hacked Alien Tech Used ----------------- None Achievements -------------- Deductive Reasoning Frankenstein Gunslinger Challenges ------------ None Game ------ Seed DeepBlastChainsaw Manual? 0 Play Time 01:53:14 Cumulative 61.4 hours Start 2026.07.15 @ 05:58:08 End 2026.07.15 @ 08:26:44 Sessions 1 Manual Loads 0 Difficulty Rogue Special Mode None Game No. 44 Rogue 44 Adventurer 0 Explorer 0 Win Type - Total 1 Types 1/0/0/0/0/0/0/0/0/0 Lore% 48 Gallery% 38 Achievement% 36 Wizard Run 0 Options --------- Layout 1 ASCII 0 Keyboard 1 Movement Arrows Keybinds 0 Fullscreen 1 Font 24/Smallcaps Map View 50x35 Zoom Use 0% Tactical HUD 1 Map Filters NONE Filters NONE Steam 1 RUN: 25f01f54-4e80-4b59-a2a1-be0206589f72